{"text_format":"3","workbook":"xlsx","n_sheets":2,"sheets":["Instructions","Thief XP"],"not_rendered":{"macros":1,"defined_names":1,"comments":1},"read":"whole","date_system":"1900"}

{"sheet":"Instructions","index":0,"n_rows":31,"n_cols":2,"rows_kept":31,"merged":[[0,1,4,9],[5,1,12,9],[13,1,15,9],[16,1,21,9],[22,1,24,9],[25,1,28,9],[30,1,30,7]]}
[null,"This is a very basic and easy to use spreadsheet to keep track of XP earned by a Thief character for using their abilities plus XP from treasure found. This is based on the AD&D, since I have not played the other additions, I can't say how well this would convert over."]
[]
[]
[]
[]
[null,"This sheet will add up all your successful uses of your abilities, multiply it by 200 and give you a total XP earned from abilities. You can also enter the value of any treasure you find and this sheet will convert it to GP if other than GP, and multiply it by 2 to give you the XP total for GP value. I have taken the liberty of including steel pieces for anyone who plays the Dragonlance series. If you are someone that uses a laptop when you play, then you can input the information right away. If you still use just pen and paper, the spreadsheet is conveniently made on 1 page so you can print it for use during your gaming session and input the data later."]
{"$rows_empty":7}
[null,"To use this sheet, enter your thieving abilities percentage in the appropriate box to start. After that all you have to do is put an \"x\" in the box (blue boxes only) next to the ability that you have successfully used."]
[]
[]
[null,"This program does contain macros. To enable macros on Excel 2007, click on the \"options\" button located above the formula bar, then click on \"enable this content\", then click \"ok\". To enable macros on earlier versions of Excel, go to Tools--> Macro --> Security and click on the medium setting, this will prompt you to either enable or disable macros each time that you open a file containing macros."]
[]
[]
[]
[]
[]
[null,"For those of you that want to make adjustments to the spreadsheet, the protection password is: thiefxp. If you are not that familiar with Excel and still want to play around with the formulas, I suggest you open the spreadsheet and save it under a new name before making changes."]
[]
[]
[null,"Feel free to contact me at LordTrevocGameTools@hotmail.com with any questions or comments. If you don't already have my potion generator, currency converter, wizard spell book generator, or priest xp sheet, send me an email and I can email them to you. Enjoy."]
[]
[]
[]
[]
[null,"© Lord Trevoc Game Tools"]

{"sheet":"Thief XP","index":1,"n_rows":36,"n_cols":21,"rows_kept":36,"merged":[[0,3,0,22],[1,0,2,1],[1,2,2,2],[2,3,2,17],[2,18,2,19],[2,20,2,22],[3,0,4,1],[3,2,4,2],[4,3,4,17],[4,18,4,19],[4,20,4,22],[5,0,6,1],[5,2,6,2],[6,3,6,17],[6,18,6,19],[6,20,6,22],[7,0,8,1],[7,2,8,2],[8,3,8,17],[8,18,8,19],[8,20,8,22],[9,0,10,1],[9,2,10,2],[10,3,10,17],[10,18,10,19],[10,20,10,22],[11,0,12,1],[11,2,12,2],[12,3,12,17],[12,18,12,19],[12,20,12,22],[13,0,14,1],[13,2,14,2],[14,3,14,17],[14,18,14,19],[14,20,14,22],[15,0,16,1],[15,2,16,2],[16,3,16,17],[16,18,16,19],[16,20,16,22],[17,0,18,1],[17,2,18,2],[18,3,18,17],[18,18,18,19],[18,20,18,22],[19,0,20,1],[19,2,20,2],[20,3,20,17],[20,18,20,19],[20,20,20,22],[21,12,22,19],[21,20,22,22],[27,0,27,1],[27,2,27,4],[27,5,27,7],[27,10,28,21],[28,0,28,1],[28,2,28,4],[28,5,28,7],[29,0,29,1],[29,2,29,4],[29,5,29,7],[29,10,30,21],[30,0,30,1],[30,2,30,4],[30,5,30,7],[31,0,31,1],[31,2,31,4],[31,5,31,7],[32,0,32,1],[32,2,32,4],[32,5,32,7],[33,0,33,1],[33,2,33,4],[33,5,33,7],[34,0,34,4],[34,5,34,7],[35,0,35,4],[35,5,35,7]]}
["Ability",null,"%","200 XP per successful use of ability"]
["Climb Walls"]
[{"$nulls":18},"XP Earned =",null,{"$f":"COUNTIF(D2:W2,\"x\")*200","v":0}]
["Detect Noise"]
[{"$nulls":18},"XP Earned =",null,{"$f":"COUNTIF(D4:W4,\"x\")*200","v":0}]
["Find Traps"]
[{"$nulls":18},"XP Earned =",null,{"$f":"COUNTIF(D6:W6,\"x\")*200","v":0}]
["Remove Traps"]
[{"$nulls":18},"XP Earned =",null,{"$f":"COUNTIF(D8:W8,\"x\")*200","v":0}]
["Hide in Shadows"]
[{"$nulls":18},"XP Earned =",null,{"$f":"COUNTIF(D10:W10,\"x\")*200","v":0}]
["Move Silently"]
[{"$nulls":18},"XP Earned =",null,{"$f":"COUNTIF(D12:W12,\"x\")*200","v":0}]
["Open Locks"]
[{"$nulls":18},"XP Earned =",null,{"$f":"COUNTIF(D14:W14,\"x\")*200","v":0}]
["Pick Pockets"]
[{"$nulls":18},"XP Earned =",null,{"$f":"COUNTIF(D16:W16,\"x\")*200","v":0}]
["Read Languages"]
[{"$nulls":18},"XP Earned =",null,{"$f":"COUNTIF(D18:W18,\"x\")*200","v":0}]
["Backstab",null,"N/A"]
[{"$nulls":18},"XP Earned =",null,{"$f":"COUNTIF(D20:W20,\"x\")*200","v":0}]
[{"$nulls":12},"Total XP earned from abilities = ",{"$nulls":7},{"$f":"+SUM(U3+U5+U7+U9+U11+U13+U15+U17+U19+U21)","v":0}]
[]
[]
[]
[]
[]
["Currency",null,"Value",null,null,"Value in GP",{"$nulls":4},"Total XP earned from abilities and treasure found"]
["Copper",{"$nulls":4},{"$f":"C29*0.01","v":{"v":0,"d":"0.00"}}]
["Silver",{"$nulls":4},{"$f":"C30*0.1","v":{"v":0,"d":"0.00"}},{"$nulls":4},{"$f":"F36+U22","v":0}]
["Electrum",{"$nulls":4},{"$f":"C31*0.5","v":{"v":0,"d":"0.00"}}]
["Gold",{"$nulls":4},{"$f":"C32","v":{"v":0,"d":"0.00"}}]
["Steel",{"$nulls":4},{"$f":"C33*10","v":{"v":0,"d":"0.00"}}]
["Platinum",{"$nulls":4},{"$f":"C34*5","v":{"v":0,"d":"0.00"}}]
["Total value in GP - ",{"$nulls":4},{"$f":"SUM(F29:H34)","v":{"v":0,"d":"0.00"}}]
["Total XP earned from treasure(rounded down) - ",{"$nulls":4},{"$f":"TRUNC(F35)*2","v":0}]